[Event "4NCL 2nd Div 2023-24"]
[Site "Daventry"]
[Date "2024.05.06"]
[Round "11.11"]
[White "Pigott, John C"]
[Black "Nicholas, Koichi B"]
[Result "1/2-1/2"]
[ECO "C77"]
[WhiteElo "2299"]
[BlackElo "2145"]
[Annotator "TA"]
[PlyCount "103"]
[EventDate "2023.11.11"]
[EventType "team-tourn"]
[EventCountry "ENG"]
[SourceTitle "playchess.com"]
[Source "ChessBase"]
[SourceQuality "1"]
[TimeControl "40/6000+30:3000+30"]

{[%evp 10,103,36,43,29,24,21,11,16,0,0,0,86,88,81,-35,-39,-44,-48,-40,21,0,11,18,63,58,63,58,57,68,91,80,93,87,82,85,97,93,114,83,105,105,107,96,103,102,109,89,110,102,141,138,208,205,201,185,270,268,358,365,370,358,509,508,450,426,794,720,7295,7193,5833,5758,4133,239,239,239,5089,1885,5057,4016,4250,4126,2365,124,124,124,124,124,124,124,124,124,124,124,124,0]} 1. e4 {[%emt 0:00:04]} e5 {[%emt 0:00:33]} 2. Nf3 {[%emt 0:00:12]} Nc6 {[%emt 0:00:12]} 3. Bb5 {[%emt 0:00:30]} a6 {[%emt 0:00:10]} 4. Ba4 {[%emt 0:00:06]} Nf6 {[%emt 0:00:11]} 5. d3 {[%emt 0:00:30]} Bd6 {[%emt 0:08:50]} 6. c3 {[%emt 0:14:34]} O-O {[%emt 0:01:16]} 7. Nbd2 {[%emt 0:00:51]} b5 {[%emt 0:06:09] Wards off Nc4} 8. Bc2 {[%emt 0:01:13]} Re8 {[%emt 0:06:05] The position is equal.} 9. d4 {[%emt 0:12:10]} exd4 {[%emt 0:06:07]} 10. cxd4 {[%emt 0:01:47]} Bb4 {[%emt 0:01:06]} (10... Nb4 $1 $11 {keeps the balance.}) 11. O-O $1 $16 {[%emt 0:12:55]} Bxd2 {[%emt 0:13:40]} 12. Qxd2 {[%emt 0:04:16]} ({Only move:} 12. Bxd2 $16 {And now e5 would win.} Nxe4 13. Bxe4 Rxe4 14. Ng5 Rxd4 15. Qh5) 12... Nxe4 $15 {[%emt 0:06:31]} 13. Qf4 {[%emt 0:05:08]} d5 {[%emt 0:08:59]} 14. Re1 {[%emt 0:07:15]} f5 {[%emt 0:03:00]} (14... f6 $15) 15. Be3 $11 {[%emt 0:13:01][%cal Bc1e3,Be3f4,Bf4e5][%mdl 32]} Be6 {[%emt 0:19:02]} 16. Rac1 {[%emt 0:07:14]} g5 {[%emt 0:06:48]} 17. Nxg5 {[%emt 0:04:45]} Qxg5 {[%emt 0:00:44]} 18. Bxe4 {[%emt 0:09:04]} (18. Qxg5+ Nxg5 19. Bxg5 Nxd4 $16) 18... Qxf4 {[%emt 0:01:02]} 19. Bxf4 {[%emt 0:00:06]} Nxd4 {[%emt 0:01:02]} 20. Bd3 {[%emt 0:00:24][%cal Of4e5] A strong pair of Bishops. Black is weak on the dark squares} Bd7 {[%emt 0:07:23]} ({Don't go for} 20... c6 $2 21. Be5 c5 22. Rxc5 $18) 21. Be5 {[%emt 0:03:36]} Nc6 {[%emt 0:01:23]} 22. Bxc7 {[%emt 0:00:09]} Nb4 {[%emt 0:02:29][%csl LRa2,LRd3]} 23. Bb1 {[%emt 0:00:17]} Rac8 {[%emt 0:00:33] Strongly threatening ...Rxe1+.} 24. Bd6 {[%emt 0:00:58]} Rxc1 {[%emt 0:01:10]} 25. Rxc1 {[%emt 0:00:07]} Nc6 {[%emt 0:00:15]} 26. Kf1 {[%emt 0:00:55] Dodges Re2} Kf7 {[%emt 0:01:41]} 27. f3 {[%emt 0:01:48]} Kf6 {[%emt 0:00:55]} 28. a3 {[%emt 0:02:42]} Rc8 {[%emt 0:02:32]} 29. Kf2 {[%emt 0:01:27]} Be6 {[%emt 0:01:18]} 30. Ke3 {[%emt 0:04:08] White is much more active.} Na5 {[%emt 0:01:52]} (30... Bd7 $16 {was worth a try.} 31. Kf4 h6) 31. Rxc8 $18 {[%emt 0:00:08]} Bxc8 {[%emt 0:00:04][%mdl 4096] Endgame. KBB-KBN} 32. Kf4 {[%emt 0:00:52]} Nc4 {[%emt 0:00:33]} (32... Nc6 $142 33. g4 fxg4) 33. Bc5 {[%emt 0:00:14]} h5 {[%emt 0:01:12]} 34. Bd4+ {[%emt 0:00:25]} Kg6 {[%emt 0:00:41]} 35. g4 {[%emt 0:00:29]} hxg4 {[%emt 0:00:18]} (35... Nd2 $142) 36. fxg4 {[%emt 0:00:06][%cal Bf3g4,Bg4f5,Bf5f6][%mdl 32]} Nd6 {[%emt 0:00:30]} 37. h4 {[%emt 0:01:58]} Ne4 {[%emt 0:01:40]} (37... Kh6 $142 38. gxf5 (38. Bxf5 Nxf5 39. gxf5 Kh7 $18) 38... Bd7) 38. gxf5+ {[%emt 0:00:22]} Kh5 {[%emt 0:00:24]} 39. Bxe4 {[%emt 0:01:30]} dxe4 {[%emt 0:00:04] KB-KB} 40. f6 {[%emt 0:00:48] White threatens f7 and mate.} Be6 {[%emt 0:01:03]} 41. Kxe4 $2 {[%emt 0:04:45]} (41. Ke5 Bb3 42. Kd6 (42. Kxe4 Kxh4 43. Bc3 Kg5 $14)) 41... Kxh4 {[%emt 0:01:55]} 42. Ke5 {[%emt 0:00:09]} Bc4 {[%emt 0:09:23] [#]} (42... Bb3 43. Kd6 Kg5) 43. Kd6 $1 {[%emt 0:01:18]} Kg5 {[%emt 0:00:35]} 44. Kc5 {[%emt 0:00:18]} Kg6 {[%emt 0:03:34] [#]} 45. Kb6 $1 {[%emt 0:00:23]} Kf7 {[%emt 0:11:17]} 46. b4 $2 {[%emt 0:13:35]} (46. Kxa6 $18 {and the rest is easy.} Ke6 47. b3 Bxb3 48. Kxb5) 46... Bb3 $16 {[%emt 0:00:51] White is better.} 47. Kxa6 {[%emt 0:02:05]} Ba4 {[%emt 0:00:10]} 48. Kb6 {[%emt 0:00:32]} Ke6 {[%emt 0:00:21]} 49. Kc6 {[%emt 0:00:07]} Kf7 {[%emt 0:00:07]} 50. Kd6 {[%emt 0:01:59]} Bb3 {[%emt 0:00:13]} 51. Ke5 {[%emt 0:00:20]} Ba4 {[%emt 0:00:16]} 52. Kd6 {[%emt 0:04:50] Weighted Error Value: White=0.41/Black=0.28 (precise) .  Mistake:       	White=2     	Black=7      Inaccurate:     	---       	Black=4      OK:         	White=16    	Black=12     Best:        	White=2     	Black=2      Strong:       	White=2     	---} ({White should try} 52. Bc3 $16) 1/2-1/2

[Event "4NCL 2nd Div 2023-24"]
[Site "Daventry"]
[Date "2024.05.06"]
[Round "11.12"]
[White "Shepherd, Tom"]
[Black "Rogers, Jonathan W"]
[Result "1/2-1/2"]
[ECO "D08"]
[WhiteElo "1918"]
[BlackElo "2332"]
[Annotator "TA"]
[PlyCount "84"]
[EventDate "2023.11.11"]
[EventType "team-tourn"]
[EventCountry "ENG"]
[SourceTitle "playchess.com"]
[Source "ChessBase"]
[SourceQuality "1"]
[TimeControl "40/6000+30:3000+30"]

{[%evp 9,84,-41,-25,-26,-22,-30,0,-8,1,-9,20,-19,-17,-17,0,0,0,0,0,0,11,2,16,14,15,24,72,52,80,81,72,81,84,75,70,68,75,63,61,48,47,50,51,-4,-10,-8,-16,-11,-8,-60,-70,-60,-62,-83,-20,-23,-23,-29,0,0,0,0,0,0,0,0,0,0,0,0,0,0,0,0,0,0,0]} 1. d4 {[%emt 0:00:03]} d5 {[%emt 0:00:07]} 2. c4 {[%emt 0:00:08]} e5 {[%emt 0:00:06]} 3. cxd5 {[%emt 0:01:49]} Qxd5 {[%emt 0:00:30]} 4. Nc3 {[%emt 0:10:23]} Qxd4 {[%emt 0:08:40]} 5. Qxd4 {[%emt 0:00:08]} exd4 {[%emt 0:00:05]} 6. Nb5 {[%emt 0:00:04][%csl LRc7,LRd4]} Na6 {[%emt 0:00:11]} 7. Nxd4 {[%emt 0:00:06]} Nf6 {[%emt 0:10:19]} 8. a3 {[%emt 0:07:50] Inhibits Bb4+.} Nc5 {[%emt 0:02:40]} 9. Ngf3 {[%emt 0:04:17]} a5 {[%emt 0:03:40]} 10. e3 {[%emt 0:02:30]} c6 {[%emt 0:09:15]} 11. Bc4 {[%emt 0:04:15]} Bd6 {[%emt 0:02:41]} 12. O-O {[%emt 0:00:24]} O-O {[%emt 0:00:09]} 13. Rd1 {[%emt 0:03:14][%cal Od4c6]} Bc7 {[%emt 0:00:20]} 14. Bd2 {[%emt 0:00:49]} Nfe4 {[%emt 0:10:38]} 15. Be1 {[%emt 0:00:29]} Nd6 {[%emt 0:01:10]} 16. Be2 {[%emt 0:04:02]} Bg4 {[%emt 0:02:06]} 17. h3 {[%emt 0:02:51]} Bh5 {[%emt 0:03:16]} (17... Bc8 $11) 18. Rac1 {[%emt 0:03:58]} Nce4 {[%emt 0:03:16]} 19. g4 {[%emt 0:07:32]} Bg6 {[%emt 0:00:07]} 20. Ne5 {[%emt 0:00:04]} Rfe8 {[%emt 0:02:55]} 21. Nxg6 {[%emt 0:00:33]} hxg6 {[%emt 0:00:07]} 22. Kg2 {[%emt 0:01:59]} Bb6 {[%emt 0:06:15]} 23. b4 {[%emt 0:09:03]} axb4 {[%emt 0:01:20]} 24. axb4 {[%emt 0:00:05]} (24. Bxb4 c5 25. Nb5 Nxb5 26. Bxb5 cxb4) 24... Ra2 {[%emt 0:00:20] [#] ...Bxd4 would now be deadly.} 25. Rc2 {[%emt 0:02:54]} Rea8 {[%emt 0:02:46]} 26. Rdc1 {[%emt 0:03:51]} (26. Rxa2 $14 Rxa2 27. Kf1) 26... Bxd4 $11 {[%emt 0:02:43]} 27. exd4 {[%emt 0:00:07]} Rxc2 {[%emt 0:00:19]} 28. Rxc2 {[%emt 0:00:06]} Ra1 {[%emt 0:00:11]} 29. f3 {[%emt 0:04:05]} (29. Bd2 $11) 29... Rxe1 $15 {[%emt 0:01:48]} 30. fxe4 {[%emt 0:00:05]} Nxe4 {[%emt 0:00:07][%mdl 4096] Endgame. KRB-KRN} 31. Bf3 {[%emt 0:05:11][%cal Ob4b5]} f5 {[%emt 0:03:41]} ({Black should play} 31... Nd6 $17 {Strongly threatening ...Rb1.} 32. d5 cxd5) 32. b5 $11 {[%emt 0:02:41]} cxb5 {[%emt 0:01:13]} 33. Rc7 {[%emt 0:00:05]} Rb1 {[%emt 0:03:28]} 34. Bxe4 $1 {[%emt 0:03:09] The position is equal.} fxe4 {[%emt 0:00:07]} 35. Rxb7 {[%emt 0:01:28] KR-KR} Rd1 {[%emt 0:09:47]} 36. Rxb5 {[%emt 0:00:07]} Rxd4 {[%emt 0:00:04]} 37. Kg3 {[%emt 0:11:02]} Rd3+ {[%emt 0:01:21]} 38. Kf4 {[%emt 0:00:09]} Rxh3 {[%emt 0:00:07]} 39. Kxe4 {[%emt 0:00:06]} Kh7 {[%emt 0:00:12]} 40. g5 {[%emt 0:00:34]} Rh1 {[%emt 0:01:31]} 41. Kf4 {[%emt 0:52:47]} Rf1+ {[%emt 0:50:07]} 42. Kg4 {[%emt 0:00:09]} Rg1+ {[%emt 0:00:10] Weighted Error Value: White=0.09 (flawless) /Black=0.10 (very precise) .  Mistake:       	White=2     	Black=2      Inaccurate:     	White=1     	Black=4      OK:         	White=16    	Black=14     Best:        	White=1     	Black=3      Strong:       	White=1     	---} 1/2-1/2

[Event "4NCL 2nd Div 2023-24"]
[Site "Daventry"]
[Date "2024.05.06"]
[Round "11.13"]
[White "Sowray, Peter J"]
[Black "Waller, Dan"]
[Result "1/2-1/2"]
[ECO "A11"]
[WhiteElo "2206"]
[BlackElo "2094"]
[Annotator "RC"]
[PlyCount "88"]
[EventDate "2023.11.11"]
[EventType "team-tourn"]
[EventCountry "ENG"]
[SourceTitle "playchess.com"]
[Source "ChessBase"]
[SourceQuality "1"]
[TimeControl "40/6000+30:3000+30"]

1. c4 {[%emt 0:00:05]} Nf6 {[%emt 0:00:08]} 2. Nf3 {[%emt 0:00:10]} c6 {[%emt 0:00:13]} 3. g3 {[%emt 0:00:48]} d5 {[%emt 0:00:18]} 4. Bg2 {[%emt 0:00:08]} Bf5 {[%emt 0:03:18]} 5. Qb3 {[%emt 0:01:09]} Qb6 {[%emt 0:02:30]} 6. d3 {[%emt 0:00:29]} e6 {[%emt 0:04:43]} 7. Be3 {[%emt 0:00:25]} Qc7 {[%emt 0:00:18]} 8. Nc3 {[%emt 0:08:29]} Nbd7 {[%emt 0:02:25]} 9. cxd5 {[%emt 0:00:22]} exd5 {[%emt 0:01:13]} 10. O-O {[%emt 0:03:41]} Nc5 {[%emt 0:09:00]} 11. Qc2 {[%emt 0:03:33]} Ne6 {[%emt 0:00:29]} 12. Rac1 {[%emt 0:05:40]} Bd6 {[%emt 0:10:49]} 13. Nd4 {[%emt 0:07:50]} Nxd4 {[%emt 0:05:38]} 14. Bxd4 {[%emt 0:00:04]} Qe7 {[%emt 0:06:14]} 15. a3 {[%emt 0:06:29]} O-O {[%emt 0:01:16]} 16. Na4 {[%emt 0:01:56]} Rac8 {[%emt 0:03:25]} 17. b4 {[%emt 0:04:15]} Rfd8 {[%emt 0:08:57]} 18. Qb2 {[%emt 0:08:42]} Ne8 {[%emt 0:04:33]} 19. Rfe1 {[%emt 0:05:26]} f6 {[%emt 0:06:19]} 20. e4 {[%emt 0:06:51]} dxe4 {[%emt 0:00:04]} 21. dxe4 {[%emt 0:00:09]} Bg6 {[%emt 0:00:08]} 22. f4 {[%emt 0:01:50]} Bb8 {[%emt 0:05:10]} 23. Nc5 {[%emt 0:03:50]} b6 {[%emt 0:04:03]} 24. Na6 {[%emt 0:02:35]} c5 {[%emt 0:00:26]} 25. bxc5 {[%emt 0:05:42]} bxc5 {[%emt 0:00:11]} 26. Bxc5 {[%emt 0:01:37]} Bd6 {[%emt 0:00:47]} 27. Qf2 {[%emt 0:04:39]} Bf7 {[%emt 0:05:51]} 28. e5 {[%emt 0:02:30]} Bxc5 {[%emt 0:00:38]} 29. Nxc5 {[%emt 0:00:33]} fxe5 {[%emt 0:04:08]} 30. fxe5 {[%emt 0:00:46]} Bd5 {[%emt 0:04:31]} 31. e6 {[%emt 0:08:36]} Bxg2 {[%emt 0:00:19]} 32. Kxg2 {[%emt 0:00:03]} Nf6 {[%emt 0:01:01]} 33. Rc2 {[%emt 0:06:52]} Rc6 {[%emt 0:05:09]} 34. Rec1 {[%emt 0:02:15]} Rdc8 {[%emt 0:00:39]} 35. h3 {[%emt 0:01:38]} Qd6 {[%emt 0:01:25]} 36. Kh2 {[%emt 0:01:33]} h5 {[%emt 0:01:06]} 37. Nd7 {[%emt 0:02:39]} Qxe6 {[%emt 0:07:46]} 38. Rxc6 {[%emt 0:00:09]} Rxc6 {[%emt 0:00:08]} 39. Rxc6 {[%emt 0:01:07]} Qxc6 {[%emt 0:00:04]} 40. Nxf6+ {[%emt 0:00:41]} Qxf6 {[%emt 0:01:09]} 41. Qxa7 {[%emt 0:51:08]} Qb2+ {[%emt 0:04:40]} 42. Kg1 {[%emt 0:00:00]} Qc1+ {[%emt 0:01:16]} 43. Kf2 {[%emt 0:00:00]} Qd2+ {[%emt 0:00:29]} 44. Kf3 {[%emt 0:00:00]} Qd1+ {[%emt 0:01:11]} 1/2-1/2

[Event "4NCL 2nd Div 2023-24"]
[Site "Daventry"]
[Date "2024.05.06"]
[Round "11.14"]
[White "Skettos, Nicolas"]
[Black "Pert, Max"]
[Result "0-1"]
[ECO "B15"]
[WhiteElo "2014"]
[BlackElo "2010"]
[Annotator "NA RC"]
[PlyCount "82"]
[EventDate "2023.11.11"]
[EventType "team-tourn"]
[EventCountry "ENG"]
[SourceTitle "playchess.com"]
[Source "ChessBase"]
[SourceQuality "1"]
[TimeControl "40/6000+30:3000+30"]

1. e4 {[%emt 0:00:02]} c6 {[%emt 0:00:11]} 2. d4 {[%emt 0:00:58]} d5 {[%emt 0:00:07]} 3. Nd2 {[%emt 0:00:03]} dxe4 {[%emt 0:00:12]} 4. Nxe4 {[%emt 0:00:03]} Nf6 {[%emt 0:00:53]} 5. Nxf6+ {[%emt 0:00:04]} exf6 {[%emt 0:00:08]} 6. c3 {[%emt 0:00:09]} Bf5 {[%emt 0:00:22]} 7. Bf4 {[%emt 0:03:30]} Bd6 {[%emt 0:01:43]} 8. Bxd6 {[%emt 0:02:50]} Qxd6 {[%emt 0:00:07]} 9. Qf3 {[%emt 0:01:49]} Qe6+ {[%emt 0:04:04]} 10. Qe3 {[%emt 0:04:16]} O-O {[%emt 0:01:08]} 11. Qxe6 {[%emt 0:00:02]} fxe6 {[%emt 0:04:06]} 12. Bc4 {[%emt 0:01:17]} Nd7 {[%emt 0:01:24]} 13. Ne2 {[%emt 0:00:18]} Rfe8 {[%emt 0:04:01]} 14. Ng3 {[%emt 0:00:22]} Bg6 {[%emt 0:00:39]} 15. O-O {[%emt 0:04:15]} b5 {[%emt 0:04:38]} 16. Bb3 {[%emt 0:03:12]} c5 {[%emt 0:01:04]} 17. Rfe1 {[%emt 0:02:02]} c4 {[%emt 0:09:14]} 18. Bd1 {[%emt 0:00:48]} Nb6 {[%emt 0:08:19]} 19. Bf3 {[%emt 0:06:17]} Rac8 {[%emt 0:04:09]} 20. Bb7 {[%emt 0:01:51]} Rc7 {[%emt 0:01:40]} 21. Ba6 {[%emt 0:00:33]} Nd5 {[%emt 0:01:19]} 22. a4 {[%emt 0:28:56]} b4 {[%emt 0:03:51]} 23. cxb4 {[%emt 0:01:44]} Nxb4 {[%emt 0:00:22]} 24. Bb5 {[%emt 0:00:07]} Rd8 {[%emt 0:02:45]} 25. Rxe6 {[%emt 0:03:10]} Bf7 {[%emt 0:00:19]} 26. Rae1 {[%emt 0:01:38]} Bxe6 {[%emt 0:00:28]} 27. Rxe6 {[%emt 0:00:01]} Kf7 {[%emt 0:00:43]} 28. d5 {[%emt 0:00:50]} Rxd5 {[%emt 0:01:15]} 29. Re1 {[%emt 0:00:10]} g6 {[%emt 0:06:29]} 30. Ne4 {[%emt 0:04:09]} a6 {[%emt 0:03:15]} 31. Be8+ {[%emt 0:02:16]} Kg7 {[%emt 0:01:15]} 32. Nc3 {[%emt 0:01:01]} Re5 {[%emt 0:00:14]} 33. Rxe5 {[%emt 0:00:05]} fxe5 {[%emt 0:00:04]} 34. a5 {[%emt 0:00:42]} Rc5 {[%emt 0:00:28]} 35. Kf1 {[%emt 0:00:45]} Rxa5 {[%emt 0:00:25]} 36. Ke2 {[%emt 0:00:11]} Nd3 {[%emt 0:00:29]} 37. b4 {[%emt 0:01:32]} Nxb4 {[%emt 0:00:11]} 38. Na4 {[%emt 0:00:37]} Kf8 {[%emt 0:00:25]} 39. Bd7 {[%emt 0:00:15]} Ke7 {[%emt 0:00:10]} 40. Nb6 {[%emt 0:00:17]} Nd5 {[%emt 0:00:54]} 41. Nxd5+ {[%emt 0:50:21]} Rxd5 {[%emt 0:50:07]} 0-1

[Event "4NCL 2nd Div 2023-24"]
[Site "Daventry"]
[Date "2024.05.06"]
[Round "11.15"]
[White "Brett, Andrew R"]
[Black "Handley, Michael R"]
[Result "1/2-1/2"]
[ECO "D85"]
[WhiteElo "2044"]
[BlackElo "2004"]
[Annotator "NA RC"]
[PlyCount "63"]
[EventDate "2023.11.11"]
[EventType "team-tourn"]
[EventCountry "ENG"]
[SourceTitle "playchess.com"]
[Source "ChessBase"]
[SourceQuality "1"]
[TimeControl "40/6000+30:3000+30"]

1. d4 {[%emt 0:00:06]} Nf6 {[%emt 0:00:03]} 2. c4 {[%emt 0:00:07]} g6 {[%emt 0:00:03]} 3. Nc3 {[%emt 0:00:19]} d5 {[%emt 0:00:05]} 4. cxd5 {[%emt 0:00:08]} Nxd5 {[%emt 0:00:03]} 5. e4 {[%emt 0:00:09]} Nxc3 {[%emt 0:00:04]} 6. bxc3 {[%emt 0:00:05]} Bg7 {[%emt 0:00:03]} 7. Nf3 {[%emt 0:00:18]} c5 {[%emt 0:00:04]} 8. Bb5+ {[%emt 0:00:15] 8.Be3 is the recent fashion.} Nc6 {[%emt 0:08:51]} 9. O-O {[%emt 0:00:21]} O-O {[%emt 0:02:25] D85: Exchange Grünfeld: Unusual White 7th moves and lines with 7 Nf3.} 10. d5 {[%emt 0:03:24]} Na5 {[%emt 0:04:05]} 11. Be3 {[%emt 0:03:06]} a6 {[%emt 0:01:37]} 12. Be2 {[%emt 0:00:51]} Qc7 {[%emt 0:00:09]} 13. Qd2 $146 {[%emt 0:01:16]} ({Predecessor:} 13. h3 b5 14. Qd2 e5 15. Rfd1 Qd6 16. Ne1 Bd7 17. f3 Rab8 18. Rab1 f5 19. Rb2 {1-0 Esipenko,A (2286)-Yeletsky,I (2209) RUS-chT U20 Kolomna 2014 (5)}) 13... b5 {[%emt 0:04:43]} 14. Bh6 {[%emt 0:06:52]} Bg4 {[%emt 0:02:32]} 15. Bxg7 {[%emt 0:00:34]} Kxg7 {[%emt 0:00:05]} 16. Rad1 {[%emt 0:05:03]} Bxf3 {[%emt 0:02:41]} 17. Bxf3 {[%emt 0:00:20]} Nc4 {[%emt 0:00:06]} 18. Qc2 {[%emt 0:00:37]} e5 {[%emt 0:08:39]} 19. dxe6 {[%emt 0:02:22]} fxe6 {[%emt 0:04:30]} 20. Be2 {[%emt 0:00:14]} Nb6 {[%emt 0:02:14]} 21. Qd2 {[%emt 0:03:23]} Rad8 {[%emt 0:05:33]} 22. Qe3 {[%emt 0:01:01]} e5 {[%emt 0:01:40]} 23. g3 {[%emt 0:00:51]} Na4 {[%emt 0:14:27]} 24. h4 {[%emt 0:00:56]} Rxd1 {[%emt 0:02:17]} 25. Rxd1 $11 {[%emt 0:02:43]} Rd8 {[%emt 0:00:18]} 26. h5 {[%emt 0:01:21]} Rxd1+ {[%emt 0:03:50]} 27. Bxd1 {[%emt 0:00:07]} Nb2 {[%emt 0:08:43]} 28. Bg4 {[%emt 0:02:43]} Qd6 {[%emt 0:01:01]} 29. Be2 {[%emt 0:13:31]} Nc4 {[%emt 0:07:13]} 30. h6+ {[%emt 0:02:58]} Kf7 {[%emt 0:01:13]} 31. Qf3+ {[%emt 0:02:00]} Ke7 {[%emt 0:00:43]} 32. Bxc4 {[%emt 0:04:19]} 1/2-1/2

[Event "4NCL 2nd Div 2023-24"]
[Site "Daventry"]
[Date "2024.05.06"]
[Round "11.16"]
[White "Frank, Tena"]
[Black "Oh, Julie"]
[Result "1-0"]
[ECO "D35"]
[WhiteElo "1956"]
[BlackElo "1618"]
[Annotator "NA RC"]
[PlyCount "63"]
[EventDate "2023.11.11"]
[EventType "team-tourn"]
[EventCountry "ENG"]
[SourceTitle "playchess.com"]
[Source "ChessBase"]
[SourceQuality "1"]
[TimeControl "40/6000+30:3000+30"]

1. d4 {[%emt 0:00:06]} d5 {[%emt 0:00:10]} 2. c4 {[%emt 0:00:13]} e6 {[%emt 0:00:13]} 3. Nc3 {[%emt 0:00:11]} Nf6 {[%emt 0:00:09]} 4. cxd5 {[%emt 0:00:11]} exd5 {[%emt 0:00:29]} 5. Bg5 {[%emt 0:00:19]} Nbd7 {[%emt 0:02:37]} 6. e3 {[%emt 0:02:09]} c6 {[%emt 0:00:57]} 7. Bd3 {[%emt 0:00:27]} Be7 {[%emt 0:02:26]} 8. Nf3 {[%emt 0:01:36]} Ne4 {[%emt 0:06:01]} 9. Bf4 {[%emt 0:09:33]} Bb4 {[%emt 0:19:45]} 10. Qc2 {[%emt 0:02:38]} Ndf6 {[%emt 0:22:09]} 11. O-O {[%emt 0:03:58]} Bxc3 {[%emt 0:13:47]} 12. bxc3 $16 {[%emt 0:00:13]} O-O {[%emt 0:01:19]} 13. c4 {[%emt 0:04:31]} Re8 {[%emt 0:07:17]} 14. a4 {[%emt 0:07:58]} h6 {[%emt 0:10:37]} 15. a5 {[%emt 0:04:15]} Nh5 {[%emt 0:04:28]} 16. Be5 {[%emt 0:04:25]} Ng5 {[%emt 0:06:21]} 17. Nxg5 {[%emt 0:08:05]} Qxg5 {[%emt 0:00:18]} 18. f4 {[%emt 0:07:34]} Qh4 {[%emt 0:01:57]} 19. cxd5 {[%emt 0:11:30]} f6 {[%emt 0:02:47]} 20. Bg6 {[%emt 0:01:12]} Re7 {[%emt 0:01:37]} 21. d6 {[%emt 0:03:00]} Rd7 {[%emt 0:02:09]} 22. Qc4+ {[%emt 0:07:20]} Kh8 {[%emt 0:00:54]} 23. Qe6 {[%emt 0:09:27]} Rd8 {[%emt 0:01:07]} 24. Qe7 {[%emt 0:03:09]} Bd7 {[%emt 0:00:56]} 25. f5 {[%emt 0:05:41]} Qe4 {[%emt 0:00:40]} 26. Bf4 {[%emt 0:00:57]} Qxe7 {[%emt 0:00:16]} 27. dxe7 {[%emt 0:00:12]} Re8 {[%emt 0:01:27]} 28. Bd6 {[%emt 0:01:06]} Rxe7 {[%emt 0:00:37]} 29. Bxe7 {[%emt 0:00:14]} Be8 {[%emt 0:00:04]} 30. g4 {[%emt 0:00:42]} Bxg6 {[%emt 0:00:31]} 31. fxg6 {[%emt 0:00:13]} Ng3 {[%emt 0:00:41]} 32. hxg3 {[%emt 0:00:12]} 1-0